Workbook

Sheet Inicio_EG
A24: Descargue la versión Kindle
K34: Miguel Cervantes Jiménez

Sheet EOC1central (hidden)
A2: EQUILIBRIO GENERAL (ENFOQUE CENTRALIZADO)
A3: ELECCIÓN CANTIDAD DE TRABAJO (OCIO) Y CONSUMO
B6: Función de producción
C7: Caso 1 | D7: Caso 2
B8: A | C8: 100.0 | D8: =C8 -> 100.0
B9: alfa | C9: 0.5 | D9: =C9 -> 0.5
B10: qbarra | C10: 24.0 | D10: =C10 -> 24.0
C12: Caso 1 | D12: Caso 2
B13: Consumo | C13: =oculto_EOC!B37 -> 282.8 | D13: =oculto_EOC!C37 -> 282.8
B14: Trabajo | C14: =oculto_EOC!B38 -> 8.0 | D14: =oculto_EOC!C38 -> 8.0
B15: Ocio | C15: =oculto_EOC!B39 -> 16.0 | D15: =oculto_EOC!C39 -> 16.0
B17: Función de utilidad
C18: Caso 1 | D18: Caso 2
B19: Utilidad | C19: =oculto_EOC!B43 -> 67.3 | D19: =oculto_EOC!C43 -> 67.3
B20: beta | C20: 0.5 | D20: =C20 -> 0.5
B21: gamma | C21: 0.5 | D21: =C21 -> 0.5
C23: Caso 1 | D23: Caso 2
B24: PMq | C24: =oculto_EOC!B48 -> 17.7 | D24: =oculto_EOC!C48 -> 17.7
B25: RMS | C25: =oculto_EOC!B49 -> 17.7 | D25: =oculto_EOC!C49 -> 17.7
B33: Títulos
B34: Resultados
B35: Insertar datos
B36: Equilibrio

Sheet EOC1descenmaxutil (hidden)
B2: EQUILIBRIO GENERAL
B3: MAXIMIZACIÓN DE LA UTILIDAD
B6: Función utilidad
C7: Caso 1 | D7: Caso 2
B8: u | C8: =oculto_EOC!BD40 -> 53.7 | D8: =oculto_EOC!BE40 -> 53.7
B9: beta | C9: 0.5 | D9: =C9 -> 0.5
B10: gama | C10: 0.5 | D10: =C10 -> 0.5
B11: qbarra | C11: 24.0 | D11: =C11 -> 24.0
C13: Caso 1 | D13: Caso 2
B14: Consumo | C14: =oculto_EOC!BD45 -> 240.0 | D14: =oculto_EOC!BE45 -> 240.0
B15: Trabajo | C15: =oculto_EOC!BD46 -> 12.0 | D15: =oculto_EOC!BE46 -> 12.0
B16: Ocio | C16: =oculto_EOC!BD47 -> 12.0 | D16: =oculto_EOC!BE47 -> 12.0
B17: Precio bien | C17: 1.0 | D17: =C17 -> 1.0
B18: Salario | C18: 20.0 | D18: =C18 -> 20.0
B19: Beneficio | C19: 0 | D19: =C19 -> 0
B20: Salario real | C20: =oculto_EOC!BD57 -> 20.0 | D20: =oculto_EOC!BE57 -> 20.0
C22: Caso 1 | D22: Caso 2
B23: RMSo-c | C23: =oculto_EOC!BD57 -> 20.0 | D23: =oculto_EOC!BE57 -> 20.0
B36: Títulos
B37: Resultados
B38: Insertar datos
B39: Equilibrio

Sheet EOC1descentral (hidden)
B2: ELECCIÓN CANTIDAD DE OCIO Y CONSUMO
M4: solución 1 | N4: solución 2 | O4: solución 3
M5: Mercado de bienes
B6: Función producción | L6: producción | M6: =(C9*((C25/(C10*C24*C9))^(C10/(C10-1)))) -> 152.7359316 | N6: =(D9*((D25/(D10*D24*D9))^(D10/(D10-1)))) -> 152.7406967 | O6: =(E9*((E25/(E10*E24*E9))^(E10/(E10-1)))) -> 
C7: Caso 1 | D7: Caso 2 | L7: consumo | M7: =(C17/(C17+C16))*((C26+(C27*C11))/C24) -> 152.7346313 | N7: =(D17/(D17+D16))*((D26+(D27*D11))/D24) -> 152.7322489 | O7: =(E17/(E17+E16))*((E26+(E27*E11))/E24) -> 
B8: B | C8: 0 | D8: =C8 -> 0 | M8: =(C9*((C25/(C10*C24*C9))^(C10/(C10-1))))-(C17/(C17+C16))*((C26+(C27*C11))/C24) -> 0.00 | N8: =(D9*((D25/(D10*D24*D9))^(D10/(D10-1))))-(D17/(D17+D16))*((D26+(D27*D11))/D24) -> 0.01 | O8: =(E9*((E25/(E10*E24*E9))^(E10/(E10-1))))-(E17/(E17+E16))*((E26+(E27*E11))/E24) -> 
B9: A | C9: 54.0 | D9: =C9 -> 54.0
B10: alfa | C10: 0.5 | D10: =C10 -> 0.5 | M10: mercado de factore
B11: qbarra | C11: 24.0 | D11: =C11 -> 24.0 | L11: Demanda q | M11: =((C25/(C10*C24*C9))^(1/(C10-1))) -> 8.000090814 | N11: =((D25/(D10*D24*D9))^(1/(D10-1))) -> 8.000589992 | O11: =((E25/(E10*E24*E9))^(1/(E10-1))) -> 
L12: oferta q | M12: =(C11-((C16/(C17+C16))*((C26/C25)+C11))) -> 7.999954593 | N12: =(D11-((D16/(D17+D16))*((D26/D25)+D11))) -> 7.999705004 | O12: =(E11-((E16/(E17+E16))*((E26/E25)+E11))) -> 
B13: Función utilidad | M13: =((C25/(C10*C24*C9))^(1/(C10-1)))-(C11-((C16/(C17+C16))*((C26/C25)+C11))) -> 0.00 | N13: =((D25/(D10*D24*D9))^(1/(D10-1)))-(D11-((D16/(D17+D16))*((D26/D25)+D11))) -> 0.00 | O13: =((E25/(E10*E24*E9))^(1/(E10-1)))-(E11-((E16/(E17+E16))*((E26/E25)+E11))) -> 
C14: Caso 1 | D14: Caso 2
B15: u | C15: =oculto_EOC!BT40 -> 49.4 | D15: =oculto_EOC!BU40 -> 49.4
B16: beta | C16: 0.5 | D16: =C16 -> 0.5
B17: gamma | C17: 0.5 | D17: =C17 -> 0.5
C19: Caso 1 | D19: Caso 2
B20: Consumo | C20: =oculto_EOC!N45 -> 141.4 | D20: =oculto_EOC!BU45 -> 152.7
B21: Trabajo | C21: =oculto_EOC!N46 -> 8.0 | D21: =oculto_EOC!BU46 -> 8.0
B22: Ocio | C22: =oculto_EOC!N47 -> 16.0 | D22: =oculto_EOC!BU47 -> 16.0
B23: Utilidad | C23: =oculto_EOC!N68 -> 47.6 | D23: =oculto_EOC!Q68 -> 47.6
B24: Precio bien | C24: 1.0 | D24: =C24 -> 1.0
B25: Salario | C25: 9.5 | D25: 9.5
B26: Beneficio | C26: =oculto_EOC!BT50 -> 76.4 | D26: =oculto_EOC!BU50 -> 76.4
B27: Salario real | C27: =oculto_EOC!BT51 -> 9.5 | D27: =oculto_EOC!BU51 -> 9.5
B28: Exc. Dem q | C28: =oculto_EOC!BT52 -> 0.0 | D28: =oculto_EOC!BU52 -> 0.0
C30: Caso 1 | D30: Caso 2
B31: PMq | C31: =oculto_EOC!BT56 -> 9.5 | D31: =oculto_EOC!BU56 -> 9.5
B32: RMS | C32: =oculto_EOC!BT57 -> 9.5 | D32: =oculto_EOC!BU57 -> 9.5
B37: Títulos
B38: Resultados
B39: Insertar datos
B40: Equilibrio

Sheet EOC1descentral_ESI (hidden)
B2: ELECCIÓN CANTIDAD DE OCIO Y CONSUMO
B3: Y EFECTOS TOTAL, RIQUEZA Y SUSTITUCIÓN
M4: solución 1 | N4: solución 2 | O4: solución 3
M5: Mercado de bienes
B6: Función Producción | L6: producción | M6: =(C9*((C25/(C10*C24*C9))^(C10/(C10-1)))) -> 141.4226635 | N6: =(D9*((D25/(D10*D24*D9))^(D10/(D10-1)))) -> 141.4235052 | O6: =(E9*((E25/(E10*E24*E9))^(E10/(E10-1)))) -> 141.4216638
C7: Caso 1 | D7: Caso 2 | E7: Compensada | L7: consumo | M7: =(C17/(C17+C16))*((C26+(C27*C11))/C24) -> 141.4207026 | N7: =(D17/(D17+D16))*((D26+(D27*D11))/D24) -> 141.4202818 | O7: =(E17/(E17+E16))*((E26+(E27*E11))/E24) -> 141.4207816
B8: B | C8: 0 | D8: =C8 -> 0 | E8: =oculto_EOC!P33 -> -0.0 | M8: =(C9*((C25/(C10*C24*C9))^(C10/(C10-1))))-(C17/(C17+C16))*((C26+(C27*C11))/C24) -> 0.00 | N8: =(D9*((D25/(D10*D24*D9))^(D10/(D10-1))))-(D17/(D17+D16))*((D26+(D27*D11))/D24) -> 0.00 | O8: =(E9*((E25/(E10*E24*E9))^(E10/(E10-1))))-(E17/(E17+E16))*((E26+(E27*E11))/E24) -> 0.00
B9: A | C9: 50.0 | D9: =C9 -> 50.0 | E9: =oculto_EOC!P34 -> 50.0
B10: alfa | C10: 0.5 | D10: =C10 -> 0.5 | E10: =oculto_EOC!P35 -> 0.5 | M10: mercado de factore
B11: qbarra | C11: 24.0 | D11: =C11 -> 24.0 | E11: =oculto_EOC!P36 -> 24.0 | L11: Demanda q | M11: =((C25/(C10*C24*C9))^(1/(C10-1))) -> 8.000147898 | N11: =((D25/(D10*D24*D9))^(1/(D10-1))) -> 8.000243132 | O11: =((E25/(E10*E24*E9))^(1/(E10-1))) -> 8.000034802
L12: oferta q | M12: =(C11-((C16/(C17+C16))*((C26/C25)+C11))) -> 7.999926051 | N12: =(D11-((D16/(D17+D16))*((D26/D25)+D11))) -> 7.999878434 | O12: =(E11-((E16/(E17+E16))*((E26/E25)+E11))) -> 8.000030215
B13: Función Utilidad | M13: =((C25/(C10*C24*C9))^(1/(C10-1)))-(C11-((C16/(C17+C16))*((C26/C25)+C11))) -> 0.00 | N13: =((D25/(D10*D24*D9))^(1/(D10-1)))-(D11-((D16/(D17+D16))*((D26/D25)+D11))) -> 0.00 | O13: =((E25/(E10*E24*E9))^(1/(E10-1)))-(E11-((E16/(E17+E16))*((E26/E25)+E11))) -> 0.00
C14: Caso 1 | D14: Caso 2 | E14: Compensada
B15: u | C15: =oculto_EOC!N40 -> 47.6 | D15: =oculto_EOC!O40 -> 47.6 | E15: =oculto_EOC!P40 -> 47.6
B16: beta | C16: 0.5 | D16: =C16 -> 0.5 | E16: =oculto_EOC!P41 -> 0.5
B17: gama | C17: 0.5 | D17: =C17 -> 0.5 | E17: =oculto_EOC!P42 -> 0.5
C19: Caso 1 | D19: Caso 2 | E19: Compensada
B20: Consumo | C20: =oculto_EOC!N45 -> 141.4 | D20: =oculto_EOC!O45 -> 141.4 | E20: =oculto_EOC!P45 -> 141.4
B21: Trabajo | C21: =oculto_EOC!N46 -> 8.0 | D21: =oculto_EOC!O46 -> 8.0 | E21: =oculto_EOC!P46 -> 8.0
B22: Ocio | C22: =oculto_EOC!N47 -> 16.0 | D22: =oculto_EOC!O47 -> 16.0 | E22: =oculto_EOC!P47 -> 16.0
B23: Utilidad | C23: =oculto_EOC!N68 -> 47.6 | D23: =oculto_EOC!Q68 -> 47.6 | E23: =oculto_EOC!T68 -> 47.6
B24: Precio Bien | C24: 1.0 | D24: =C24 -> 1.0 | E24: =oculto_EOC!P48 -> 1.0
B25: Salario | C25: 8.8 | D25: 8.8 | E25: 8.8
B26: Beneficio | C26: =oculto_EOC!N50 -> 70.7 | D26: =oculto_EOC!O50 -> 70.7 | E26: =oculto_EOC!P50 -> 70.7
B27: Salario Real | C27: =oculto_EOC!N51 -> 8.8 | D27: =oculto_EOC!O51 -> 8.8 | E27: =oculto_EOC!P51 -> 8.8
B28: Exc. Dem q | C28: =oculto_EOC!N52 -> 0.0 | D28: =(oculto_EOC!O52) -> 0.0 | E28: =(oculto_EOC!P52) -> 0.0
C30: Caso 1 | D30: Caso 2 | E30: Compensada
B31: PMq | C31: =oculto_EOC!N57 -> 8.8 | D31: =oculto_EOC!O57 -> 8.8 | E31: =oculto_EOC!P57 -> 8.8
B32: RMS | C32: =oculto_EOC!N56 -> 8.8 | D32: =oculto_EOC!O56 -> 8.8 | E32: =oculto_EOC!P56 -> 8.8
C34: Trabajo | D34: Consumo
B35: ET | C35: =oculto_EOC!N60 -> 0.0 | D35: =oculto_EOC!O60 -> 0.0
B36: EW | C36: =oculto_EOC!N61 -> 0.0 | D36: =oculto_EOC!O61 -> 0.0
B37: ES | C37: =oculto_EOC!N62 -> -0.0 | D37: =oculto_EOC!O62 -> -0.0
B39: Títulos
B40: Resultados
B41: Insertar datos
B42: Equilibrio

Sheet EOC1descenmaxben (hidden)
C2: EQUILIBRIO GENERAL
C3: MAXIMIZACIÓN DEL BENEFICIO
B6: Función producción
C7: Caso 1 | D7: Caso 2
B8: B | C8: 1.0 | D8: =C8 -> 1.0
B9: A | C9: 100.0 | D9: =C9 -> 100.0
B10: alfa | C10: 0.5 | D10: =C10 -> 0.5
B11: qbarra | C11: 24.0 | D11: =C11 -> 24.0
C13: Caso 1 | D13: Caso 2
B14: Producción | C14: =oculto_EOC!AN45 -> 283.5 | D14: =oculto_EOC!AO45 -> 283.5
B15: Trabajo | C15: =oculto_EOC!AN46 -> 8.0 | D15: =oculto_EOC!AO46 -> 8.0
B16: Ocio | C16: =oculto_EOC!AN47 -> 16.0 | D16: =oculto_EOC!AO47 -> 16.0
B17: Precio bien | C17: 1.0 | D17: =C17 -> 1.0
B18: Salario | C18: 17.7 | D18: =C18 -> 17.7
B19: Ingreso total | C19: =oculto_EOC!AN50 -> 283.5 | D19: =oculto_EOC!AO50 -> 283.5
B20: Costo total | C20: =oculto_EOC!AN51 -> 141.2 | D20: =oculto_EOC!AO51 -> 141.2
B21: Beneficio | C21: =oculto_EOC!AN52 -> 142.2 | D21: =oculto_EOC!AO52 -> 142.2
B22: Salario real | C22: =oculto_EOC!AN53 -> 17.7 | D22: =oculto_EOC!AO53 -> 17.7
C24: Caso 1 | D24: Caso 2
B25: PMq | C25: =oculto_EOC!AN56 -> 17.7 | D25: =oculto_EOC!AO56 -> 17.7
B35: Títulos
B36: Resultados
B37: Insertar datos
B38: Equilibrio

Sheet oculto_EOC (hidden)
A1: EQUILIBRIO GENERAL 1X1X1X1, ENFOQUE CENTRALIZADO | M1: EQUILIBRIO GENERAL 1X1X1X1, ENFOQUE DESCENTRALIZADO CON EFECTO SUSTITUCIÓN E INGRESO | AM1: EQUILIBRIO GENERAL 1X1X1X1, ENFOQUE DESCENTRALIZADO: MAXIMIZACIÓN DEL BENEFICIO | BC1: EQUILIBRIO GENERAL 1X1X1X1, ENFOQUE DESCENTRALIZADO: MAXIMIZACIÓN DE LA UTILIDAD | BS1: EQUILIBRIO GENERAL 1X1X1X1, ENFOQUE DESCENTRALIZADO
A2: FUNCIÓN DE UTILIDAD | D2: FUNCIÓN DE PRODUCCIÓN | G2: FUNCIÓN DE UTILIDAD 1 | J2: FUNCIÓN DE PRODUCCIÓN 1 | M2: FUNCIÓN DE UTILIDAD 1 | P2: FUNCIÓN DE PRODUCCIÓN 1 | R2: RESTRICCIÓN 1 | U2: FUNCIÓN DE UTILIDAD 2 | X2: FUNCIÓN DE PRODUCCIÓN 2 | Z2: RESTRICCIÓN 2 | AC2: FUNCIÓN DE UTILIDAD COMPENSADA | AF2: FUNCIÓN DE PRODUCCIÓN COMPENSADA | AH2: RESTRICCIÓN COMPENSADA | AM2: FUNCIÓN DE UTILIDAD 1 | AP2: FUNCIÓN DE PRODUCCIÓN 1 | AR2: RESTRICCIÓN 1 | AU2: FUNCIÓN DE UTILIDAD 2 | AX2: FUNCIÓN DE PRODUCCIÓN 2 | AZ2: RESTRICCIÓN 2 | BC2: FUNCIÓN DE UTILIDAD 1 | BF2: FUNCIÓN DE PRODUCCIÓN 1 | BH2: RESTRICCIÓN 1 | BK2: FUNCIÓN DE UTILIDAD 2 | BN2: FUNCIÓN DE PRODUCCIÓN 2 | BP2: RESTRICCIÓN 2 | BS2: FUNCIÓN DE UTILIDAD 1 | BV2: FUNCIÓN DE PRODUCCIÓN 1 | BX2: RESTRICCIÓN 1 | CA2: FUNCIÓN DE UTILIDAD 2 | CD2: FUNCIÓN DE PRODUCCIÓN 2 | CF2: RESTRICCIÓN 2 | CI2: FUNCIÓN DE UTILIDAD COMPENSADA | CL2: FUNCIÓN DE PRODUCCIÓN COMPENSADA | CN2: RESTRICCIÓN COMPENSADA
A3: c | B3: O | C3: q | D3: c | E3: q | G3: c | H3: O | I3: q | J3: c | K3: q | M3: c | N3: O | O3: q | P3: c | Q3: q | R3: c | S3: q | U3: c | V3: O | W3: q | X3: c | Y3: q | Z3: c | AA3: q | AC3: c | AD3: O | AE3: q | AF3: c | AG3: q | AH3: c | AI3: q | AM3: c | AN3: O | AO3: q | AP3: c | AQ3: q | AR3: c | AS3: q | AU3: c | AV3: O | AW3: q | AX3: c | AY3: q | AZ3: c | BA3: q | BC3: c | BD3: O | BE3: q | BF3: c | BG3: q | BH3: c | BI3: q | BK3: c | BL3: O | BM3: q | BN3: c | BO3: q | BP3: c | BQ3: q | BS3: c | BT3: O | BU3: q | BV3: c | BW3: q | BX3: c | BY3: q | CA3: c | CB3: O | CC3: q | CD3: c | CE3: q | CF3: c | CG3: q | CI3: c | CJ3: O | CK3: q | CL3: c | CM3: q | CN3: c | CO3: q | CV3: MAXIMIZAICÓN DEL BENEFICIO DE LARGO PLAZO CUANDO VARÍAN LOS PRECIO DEL BIEN Y DE LOS FACTORES
A4: =($B$43/((B4)^($B$44)))^(1/$B$45) ->  | B4: =$B$34-C4 -> 0 | C4: 24 | D4: =($B$32*(E4^($B$33))) -> 489.8979486 | E4: 24 | G4: =($C$43/((H4)^($C$44)))^(1/$C$45) ->  | H4: =$C$34-I4 -> 0 | I4: 24 | J4: =($C$32*(K4^($C$33))) -> 489.8979486 | K4: 24 | M4: =($N$40/((N4)^($N$41)))^(1/$N$42) ->  | N4: =$N$36-O4 -> 0 | O4: 24 | P4: =$N$33+($N$34*(Q4^($N$35))) -> 244.9489743 | Q4: 24 | R4: =($N$50/$N$48)+($N$57*Q4) -> 282.84 | S4: =Q4 -> 24 | U4: =($O$40/((V4)^($O$41)))^(1/$O$42) ->  | V4: =$O$36-W4 -> 0 | W4: 24 | X4: =$O$33+($O$34*(Y4^($O$35))) -> 244.9489743 | Y4: 24 | Z4: =($O$50/$O$48)+($O$57*Y4) -> 282.84 | AA4: =Y4 -> 24 | AC4: =(($P$40/((AD4)^($P$41)))^(1/$P$42)) ->  | AD4: =$P$36-AE4 -> 0 | AE4: 24 | AF4: =$P$33+($P$34*(AG4^($P$35))) -> 244.9481325 | AG4: 24 | AH4: =(($P$50/$P$48)+($P$57*AG4)) -> 282.84 | AI4: =AG4 -> 24 | AJ4: =AC4-AF4 ->  | AM4: =($N$40/((AN4)^($N$41)))^(1/$N$42) ->  | AN4: =$N$36-AO4 -> 0 | AO4: 24 | AP4: =$AN$33+($AN$34*(AQ4^($AN$35))) -> 490.90 | AQ4: 24 | AR4: =($AN$52/$AN$48)+($AN$49*AQ4/$AN$48) -> 567.04 | AS4: =AQ4 -> 24 | AU4: =($O$40/((AV4)^($O$41)))^(1/$O$42) ->  | AV4: =$O$36-AW4 -> 0 | AW4: 24 | AX4: =$AO$33+($AO$34*(AY4^($AO$35))) -> 490.90 | AY4: 24 | AZ4: =($AO$52/$AO$48)+($AO$49*AY4/$AO$48) -> 567.04 | BA4: =AY4 -> 24 | BC4: =($BD$40/((BD4)^($BD$41)))^(1/$BD$42) ->  | BD4: =$BD$36-BE4 -> 0 | BE4: 24 | BF4: =($AN$34*(BG4^($AN$35))) -> 489.90 | BG4: 24 | BH4: =($BD$52/$BD$48)+($BD$49*BI4/$BD$48) -> 480.00 | BI4: =BG4 -> 24 | BK4: =($BE$40/((BL4)^($BE$41)))^(1/$BE$42) ->  | BL4: =$BD$36-BM4 -> 0 | BM4: 24 | BN4: =$AO$33+($AO$34*(BO4^($AO$35))) -> 490.90 | BO4: 24 | BP4: =($BE$52/$BE$48)+($BE$49*BO4/$BE$48) -> 480.00 | BQ4: =BO4 -> 24 | BS4: =($BT$40/((BT4)^($BT$41)))^(1/$BT$42) ->  | BT4: =$BT$36-BU4 -> 0 | BU4: 24 | BV4: =$BT$33+($BT$34*(BW4^($BT$35))) -> 264.54 | BW4: 24 | BX4: =($BT$50/$BT$48)+($BT$57*BW4) -> 305.47 | BY4: =BW4 -> 24 | CA4: =($BU$40/((CB4)^($BU$41)))^(1/$BU$42) ->  | CB4: =$BU$36-CC4 -> 0 | CC4: 24 | CD4: =$BU$33+($BU$34*(CE4^($BU$35))) -> 264.54 | CE4: 24 | CF4: =($BU$50/$BU$48)+($BU$57*CE4) -> 305.46 | CG4: =CE4 -> 24 | CI4: =(($P$40/((CJ4)^($P$41)))^(1/$P$42)) ->  | CJ4: =$P$36-CK4 -> 0 | CK4: 24 | CL4: =$P$33+($P$34*(CM4^($P$35))) -> 244.9481325 | CM4: 24 | CN4: =(($P$50/$P$48)+($P$57*CM4)) -> 282.84 | CO4: =CM4 -> 24 | CP4: =CI4-CL4 ->  | CU4: Productor A | CV4: y | CW4: =CW5*(CW6^(CW7))*(CW8^(CW9)) -> 78.4 | CX4: p | CY4: =(CY5*CY6)-((CY7*CY8)+(CY9*CY10)) -> 783.6
A5: =($B$43/((B5)^($B$44)))^(1/$B$45) -> 4525.4834 | B5: =$B$34-C5 -> 1.0 | C5: 23 | D5: =($B$32*(E5^($B$33))) -> 479.5831523 | E5: 23 | G5: =($C$43/((H5)^($C$44)))^(1/$C$45) -> 4525.4834 | H5: =$B$34-I5 -> 1.0 | I5: 23 | J5: =($C$32*(K5^($C$33))) -> 479.5831523 | K5: 23 | M5: 2262.7417 | N5: 1 | O5: 23 | P5: 239.7915762 | Q5: 23 | R5: 274.0026522 | S5: =Q5 -> 23 | U5: 2262.7417 | V5: 1 | W5: 23 | X5: =$O$34*(Y5^($O$35)) -> 239.7915762 | Y5: 23 | Z5: 274.00 | AA5: =Y5 -> 23 | AC5: 2262.728232 | AD5: 1 | AE5: 23 | AF5: 239.7907344 | AG5: 23 | AH5: 274.00 | AI5: =AG5 -> 23 | AJ5: 2022.937498 | AM5: 2262.7417 | AN5: 1 | AO5: 23 | AP5: =$AN$33+($AN$34*(AQ5^($AN$35))) -> 480.58 | AQ5: 23 | AR5: =($AN$52/$AN$48)+($AN$49*AQ5/$AN$48) -> 549.34 | AS5: =AQ5 -> 23 | AU5: 2262.7417 | AV5: 1 | AW5: 23 | AX5: =$AO$33+($AO$34*(AY5^($AO$35))) -> 480.58 | AY5: 23 | AZ5: =($AO$52/$AO$48)+($AO$49*AY5/$AO$48) -> 549.34 | BA5: =AY5 -> 23 | BC5: =($BD$40/((BD5)^($BD$41)))^(1/$BD$42) -> 2,880.00 | BD5: =$BD$36-BE5 -> 1.0 | BE5: 23 | BF5: =($AN$34*(BG5^($AN$35))) -> 479.58 | BG5: 23 | BH5: =($BD$52/$BD$48)+($BD$49*BI5/$BD$48) -> 460.00 | BI5: =BG5 -> 23 | BK5: =($BE$40/((BL5)^($BE$41)))^(1/$BE$42) -> 2,880.00 | BL5: =$BD$36-BM5 -> 1.0 | BM5: 23 | BN5: =$AO$33+($AO$34*(BO5^($AO$35))) -> 480.58 | BO5: 23 | BP5: =($BE$52/$BE$48)+($BE$49*BO5/$BE$48) -> 460.00 | BQ5: =BO5 -> 23 | BS5: =($BT$40/((BT5)^($BT$41)))^(1/$BT$42) -> 2443.761036 | BT5: =$BT$36-BU5 -> 1.0 | BU5: 23 | BV5: =$BT$33+($BT$34*(BW5^($BT$35))) -> 258.97 | BW5: 23 | BX5: =($BT$50/$BT$48)+($BT$57*BW5) -> 295.92 | BY5: =BW5 -> 23 | CA5: =($BU$40/((CB5)^($BU$41)))^(1/$BU$42) -> 2443.761038 | CB5: =$BU$36-CC5 -> 1.0 | CC5: 23 | CD5: =$BU$33+($BU$34*(CE5^($BU$35))) -> 258.97 | CE5: 23 | CF5: =($BU$50/$BU$48)+($BU$57*CE5) -> 295.92 | CG5: =CE5 -> 23 | CI5: 2262.728232 | CJ5: 1 | CK5: 23 | CL5: 239.7907344 | CM5: 23 | CN5: 274.00 | CO5: =CM5 -> 23 | CP5: 2022.937498 | CV5: A | CW5: 2.0 | CX5: p | CY5: 100.0 | CZ5: py | DA5: =CY5*CY6 -> 7836.211562 | DD5: A Productor | DE5: B Productor | DF5: suma q
A6: 2262.7417 | B6: 2.0 | C6: 22 | D6: 469.041576 | E6: 22 | G6: 2262.7417 | H6: 2.0 | I6: 22 | J6: 469.041576 | K6: 22 | M6: 1131.37085 | N6: 2 | O6: 22 | P6: 234.520788 | Q6: 22 | R6: 265.1638991 | S6: 22 | U6: 1131.37085 | V6: 2 | W6: 22 | X6: 234.520788 | Y6: 22 | Z6: 265.16 | AA6: 22 | AC6: 1131.364116 | AD6: 2 | AE6: 22 | AF6: 234.5199462 | AG6: 22 | AH6: 265.16 | AI6: 22 | AJ6: 896.8441697 | AM6: 1131.37085 | AN6: 2 | AO6: 22 | AP6: 470.04 | AQ6: 22 | AR6: 531.64 | AS6: 22 | AU6: 1131.37085 | AV6: 2 | AW6: 22 | AX6: 470.04 | AY6: 22 | AZ6: 531.64 | BA6: 22 | BC6: =($BD$40/((BD6)^($BD$41)))^(1/$BD$42) -> 1,440.00 | BD6: 2.0 | BE6: 22 | BF6: 469.04 | BG6: 22 | BH6: 440.00 | BI6: 22 | BK6: 1,440.00 | BL6: 2.0 | BM6: 22 | BN6: 470.04 | BO6: 22 | BP6: 440.00 | BQ6: 22 | BS6: 1221.880518 | BT6: 2.0 | BU6: 22 | BV6: 253.28 | BW6: 22 | BX6: 286.38 | BY6: 22 | CA6: 1221.880519 | CB6: 2.0 | CC6: 22 | CD6: 253.28 | CE6: 22 | CF6: 286.37 | CG6: 22 | CI6: 1131.364116 | CJ6: 2 | CK6: 22 | CL6: 234.5199462 | CM6: 22 | CN6: 265.16 | CO6: 22 | CP6: 896.8441697 | CV6: q1 | CW6: =CY8 -> 60.9 | CX6: y | CY6: =(CW5^(1/(1-CW7-CW9)))*((CY5*CW7)/CY7)^(CW7/(1-CW7-CW9))*((CY5*CW9)/CY9)^(CW9/(1-CW7-CW9)) -> 78.4 | CZ6: q1w1 | DA6: =CY7*CY8 -> 5485.348093 | DC6: q1 | DD6: =CW6 -> 60.9 | DE6: =CW16 -> 60.9 | DF6: =DE6+DD6 -> 121.9
A7: 1508.494467 | B7: 3.0 | C7: 21 | D7: 458.2575695 | E7: 21 | G7: 1508.494467 | H7: 3.0 | I7: 21 | J7: 458.2575695 | K7: 21 | M7: 754.2472333 | N7: 3 | O7: 21 | P7: 229.1287847 | Q7: 21 | R7: 256.3251461 | S7: 21 | U7: 754.2472334 | V7: 3 | W7: 21 | X7: 229.1287847 | Y7: 21 | Z7: 256.32 | AA7: 21 | AC7: 754.242744 | AD7: 3 | AE7: 21 | AF7: 229.127943 | AG7: 21 | AH7: 256.33 | AI7: 21 | AJ7: 525.114801 | AM7: 754.2472333 | AN7: 3 | AO7: 21 | AP7: 459.26 | AQ7: 21 | AR7: 513.94 | AS7: 21 | AU7: 754.2472334 | AV7: 3 | AW7: 21 | AX7: 459.26 | AY7: 21 | AZ7: 513.94 | BA7: 21 | BC7: 960.00 | BD7: 3.0 | BE7: 21 | BF7: 458.26 | BG7: 21 | BH7: 420.00 | BI7: 21 | BK7: 960.00 | BL7: 3.0 | BM7: 21 | BN7: 459.26 | BO7: 21 | BP7: 420.00 | BQ7: 21 | BS7: 814.5870119 | BT7: 3.0 | BU7: 21 | BV7: 247.46 | BW7: 21 | BX7: 276.83 | BY7: 21 | CA7: 814.5870128 | CB7: 3.0 | CC7: 21 | CD7: 247.46 | CE7: 21 | CF7: 276.83 | CG7: 21 | CI7: 754.242744 | CJ7: 3 | CK7: 21 | CL7: 229.127943 | CM7: 21 | CN7: 256.33 | CO7: 21 | CP7: 525.114801 | CV7: a | CW7: 0.7 | CX7: w1 | CY7: 90.0 | CZ7: q2w2 | DA7: =CY9*CY10 -> 1567.242312 | DC7: q2 | DD7: =CW8 -> 52.2 | DE7: =CW18 -> 52.2 | DF7: =DE7+DD7 -> 104.5
A8: 1131.37085 | B8: 4.0 | C8: 20 | D8: 447.2135955 | E8: 20 | G8: 1131.37085 | H8: 4.0 | I8: 20 | J8: 447.2135955 | K8: 20 | M8: 565.685425 | N8: 4 | O8: 20 | P8: 223.6067977 | Q8: 20 | R8: 247.486393 | S8: 20 | U8: 565.685425 | V8: 4 | W8: 20 | X8: 223.6067977 | Y8: 20 | Z8: 247.49 | AA8: 20 | AC8: 565.682058 | AD8: 4 | AE8: 20 | AF8: 223.605956 | AG8: 20 | AH8: 247.49 | AI8: 20 | AJ8: 342.076102 | AM8: 565.685425 | AN8: 4 | AO8: 20 | AP8: 448.21 | AQ8: 20 | AR8: 496.24 | AS8: 20 | AU8: 565.685425 | AV8: 4 | AW8: 20 | AX8: 448.21 | AY8: 20 | AZ8: 496.24 | BA8: 20 | BC8: 720.00 | BD8: 4.0 | BE8: 20 | BF8: 447.21 | BG8: 20 | BH8: 400.00 | BI8: 20 | BK8: 720.00 | BL8: 4.0 | BM8: 20 | BN8: 448.21 | BO8: 20 | BP8: 400.00 | BQ8: 20 | BS8: 610.940259 | BT8: 4.0 | BU8: 20 | BV8: 241.50 | BW8: 20 | BX8: 267.29 | BY8: 20 | CA8: 610.9402596 | CB8: 4.0 | CC8: 20 | CD8: 241.50 | CE8: 20 | CF8: 267.28 | CG8: 20 | CI8: 565.682058 | CJ8: 4 | CK8: 20 | CL8: 223.605956 | CM8: 20 | CN8: 247.49 | CO8: 20 | CP8: 342.076102 | CV8: q2 | CW8: =CY10 -> 52.2 | CX8: x1 | CY8: =(CW7*CY5*CY6)/CY7 -> 60.9 | CZ8: costo | DA8: =DA7+DA6 -> 7052.590406
A9: 905.0966799 | B9: 5.0 | C9: 19 | D9: 435.8898944 | E9: 19 | G9: 905.0966799 | H9: 5.0 | I9: 19 | J9: 435.8898944 | K9: 19 | M9: 452.54834 | N9: 5 | O9: 19 | P9: 217.9449472 | Q9: 19 | R9: 238.6476399 | S9: 19 | U9: 452.54834 | V9: 5 | W9: 19 | X9: 217.9449472 | Y9: 19 | Z9: 238.65 | AA9: 19 | AC9: 452.5456464 | AD9: 5 | AE9: 19 | AF9: 217.9441054 | AG9: 19 | AH9: 238.65 | AI9: 19 | AJ9: 234.601541 | AM9: 452.54834 | AN9: 5 | AO9: 19 | AP9: 436.89 | AQ9: 19 | AR9: 478.54 | AS9: 19 | AU9: 452.54834 | AV9: 5 | AW9: 19 | AX9: 436.89 | AY9: 19 | AZ9: 478.54 | BA9: 19 | BC9: 576.00 | BD9: 5.0 | BE9: 19 | BF9: 435.89 | BG9: 19 | BH9: 380.00 | BI9: 19 | BK9: 576.00 | BL9: 5.0 | BM9: 19 | BN9: 436.89 | BO9: 19 | BP9: 380.00 | BQ9: 19 | BS9: 488.7522072 | BT9: 5.0 | BU9: 19 | BV9: 235.38 | BW9: 19 | BX9: 257.74 | BY9: 19 | CA9: 488.7522077 | CB9: 5.0 | CC9: 19 | CD9: 235.38 | CE9: 19 | CF9: 257.74 | CG9: 19 | CI9: 452.5456464 | CJ9: 5 | CK9: 19 | CL9: 217.9441054 | CM9: 19 | CN9: 238.65 | CO9: 19 | CP9: 234.601541 | CV9: b | CW9: 0.2 | CX9: w2 | CY9: 30.0 | CZ9: beneficio | DA9: =DA5-DA8 -> 783.6211562
A10: 754.2472333 | B10: 6.0 | C10: 18 | D10: 424.2640687 | E10: 18 | G10: 754.2472333 | H10: 6.0 | I10: 18 | J10: 424.2640687 | K10: 18 | M10: 377.1236167 | N10: 6 | O10: 18 | P10: 212.1320344 | Q10: 18 | R10: 229.8088869 | S10: 18 | U10: 377.1236167 | V10: 6 | W10: 18 | X10: 212.1320344 | Y10: 18 | Z10: 229.81 | AA10: 18 | AC10: 377.121372 | AD10: 6 | AE10: 18 | AF10: 212.1311926 | AG10: 18 | AH10: 229.81 | AI10: 18 | AJ10: 164.9901794 | AM10: 377.1236167 | AN10: 6 | AO10: 18 | AP10: 425.26 | AQ10: 18 | AR10: 460.84 | AS10: 18 | AU10: 377.1236167 | AV10: 6 | AW10: 18 | AX10: 425.26 | AY10: 18 | AZ10: 460.84 | BA10: 18 | BC10: 480.00 | BD10: 6.0 | BE10: 18 | BF10: 424.26 | BG10: 18 | BH10: 360.00 | BI10: 18 | BK10: 480.00 | BL10: 6.0 | BM10: 18 | BN10: 425.26 | BO10: 18 | BP10: 360.00 | BQ10: 18 | BS10: 407.293506 | BT10: 6.0 | BU10: 18 | BV10: 229.10 | BW10: 18 | BX10: 248.19 | BY10: 18 | CA10: 407.2935064 | CB10: 6.0 | CC10: 18 | CD10: 229.10 | CE10: 18 | CF10: 248.19 | CG10: 18 | CI10: 377.121372 | CJ10: 6 | CK10: 18 | CL10: 212.1311926 | CM10: 18 | CN10: 229.81 | CO10: 18 | CP10: 164.9901794 | CX10: x2 | CY10: =(CW9*CY5*CY6)/CY9 -> 52.2
A11: 646.4976285 | B11: 7.0 | C11: 17 | D11: 412.3105626 | E11: 17 | G11: 646.4976285 | H11: 7.0 | I11: 17 | J11: 412.3105626 | K11: 17 | M11: 323.2488143 | N11: 7 | O11: 17 | P11: 206.1552813 | Q11: 17 | R11: 220.9701338 | S11: 17 | U11: 323.2488143 | V11: 7 | W11: 17 | X11: 206.1552813 | Y11: 17 | Z11: 220.97 | AA11: 17 | AC11: 323.2468903 | AD11: 7 | AE11: 17 | AF11: 206.1544395 | AG11: 17 | AH11: 220.97 | AI11: 17 | AJ11: 117.0924507 | AM11: 323.2488143 | AN11: 7 | AO11: 17 | AP11: 413.31 | AQ11: 17 | AR11: 443.14 | AS11: 17 | AU11: 323.2488143 | AV11: 7 | AW11: 17 | AX11: 413.31 | AY11: 17 | AZ11: 443.14 | BA11: 17 | BC11: 411.43 | BD11: 7.0 | BE11: 17 | BF11: 412.31 | BG11: 17 | BH11: 340.00 | BI11: 17 | BK11: 411.43 | BL11: 7.0 | BM11: 17 | BN11: 413.31 | BO11: 17 | BP11: 340.00 | BQ11: 17 | BS11: 349.1087194 | BT11: 7.0 | BU11: 17 | BV11: 222.65 | BW11: 17 | BX11: 238.65 | BY11: 17 | CA11: 349.1087198 | CB11: 7.0 | CC11: 17 | CD11: 222.65 | CE11: 17 | CF11: 238.65 | CG11: 17 | CI11: 323.2468903 | CJ11: 7 | CK11: 17 | CL11: 206.1544395 | CM11: 17 | CN11: 220.97 | CO11: 17 | CP11: 117.0924507
A12: 565.6854249 | B12: 8.0 | C12: 16 | D12: 400 | E12: 16 | G12: 565.6854249 | H12: 8.0 | I12: 16 | J12: 400 | K12: 16 | M12: 282.8427125 | N12: 8 | O12: 16 | P12: 200 | Q12: 16 | R12: 212.1313807 | S12: 16 | U12: 282.8427125 | V12: 8 | W12: 16 | X12: 200 | Y12: 16 | Z12: 212.13 | AA12: 16 | AC12: 282.841029 | AD12: 8 | AE12: 16 | AF12: 199.9991583 | AG12: 16 | AH12: 212.13 | AI12: 16 | AJ12: 82.84187073 | AM12: 282.8427125 | AN12: 8 | AO12: 16 | AP12: 401.00 | AQ12: 16 | AR12: 425.44 | AS12: 16 | AU12: 282.8427125 | AV12: 8 | AW12: 16 | AX12: 401.00 | AY12: 16 | AZ12: 425.44 | BA12: 16 | BC12: 360.00 | BD12: 8.0 | BE12: 16 | BF12: 400.00 | BG12: 16 | BH12: 320.00 | BI12: 16 | BK12: 360.00 | BL12: 8.0 | BM12: 16 | BN12: 401.00 | BO12: 16 | BP12: 320.00 | BQ12: 16 | BS12: 305.4701295 | BT12: 8.0 | BU12: 16 | BV12: 216.00 | BW12: 16 | BX12: 229.10 | BY12: 16 | CA12: 305.4701298 | CB12: 8.0 | CC12: 16 | CD12: 216.00 | CE12: 16 | CF12: 229.10 | CG12: 16 | CI12: 282.841029 | CJ12: 8 | CK12: 16 | CL12: 199.9991583 | CM12: 16 | CN12: 212.13 | CO12: 16 | CP12: 82.84187073
A13: 502.8314888 | B13: 9.0 | C13: 15 | D13: 387.2983346 | E13: 15 | G13: 502.8314888 | H13: 9.0 | I13: 15 | J13: 387.2983346 | K13: 15 | M13: 251.4157444 | N13: 9 | O13: 15 | P13: 193.6491673 | Q13: 15 | R13: 203.2926277 | S13: 15 | U13: 251.4157445 | V13: 9 | W13: 15 | X13: 193.6491673 | Y13: 15 | Z13: 203.29 | AA13: 15 | AC13: 251.414248 | AD13: 9 | AE13: 15 | AF13: 193.6483256 | AG13: 15 | AH13: 203.29 | AI13: 15 | AJ13: 57.76592242 | AM13: 251.4157444 | AN13: 9 | AO13: 15 | AP13: 388.30 | AQ13: 15 | AR13: 407.74 | AS13: 15 | AU13: 251.4157445 | AV13: 9 | AW13: 15 | AX13: 388.30 | AY13: 15 | AZ13: 407.74 | BA13: 15 | BC13: 320.00 | BD13: 9.0 | BE13: 15 | BF13: 387.30 | BG13: 15 | BH13: 300.00 | BI13: 15 | BK13: 320.00 | BL13: 9.0 | BM13: 15 | BN13: 388.30 | BO13: 15 | BP13: 300.00 | BQ13: 15 | BS13: 271.529004 | BT13: 9.0 | BU13: 15 | BV13: 209.14 | BW13: 15 | BX13: 219.56 | BY13: 15 | CA13: 271.5290043 | CB13: 9.0 | CC13: 15 | CD13: 209.14 | CE13: 15 | CF13: 219.55 | CG13: 15 | CI13: 251.414248 | CJ13: 9 | CK13: 15 | CL13: 193.6483256 | CM13: 15 | CN13: 203.29 | CO13: 15 | CP13: 57.76592242
A14: 452.54834 | B14: 10.0 | C14: 14 | D14: 374.1657387 | E14: 14 | G14: 452.54834 | H14: 10.0 | I14: 14 | J14: 374.1657387 | K14: 14 | M14: 226.27417 | N14: 10 | O14: 14 | P14: 187.0828693 | Q14: 14 | R14: 194.4538746 | S14: 14 | U14: 226.27417 | V14: 10 | W14: 14 | X14: 187.0828693 | Y14: 14 | Z14: 194.45 | AA14: 14 | AC14: 226.2728232 | AD14: 10 | AE14: 14 | AF14: 187.0820276 | AG14: 14 | AH14: 194.45 | AI14: 14 | AJ14: 39.1907956 | AM14: 226.27417 | AN14: 10 | AO14: 14 | AP14: 375.17 | AQ14: 14 | AR14: 390.04 | AS14: 14 | AU14: 226.27417 | AV14: 10 | AW14: 14 | AX14: 375.17 | AY14: 14 | AZ14: 390.04 | BA14: 14 | BC14: 288.00 | BD14: 10.0 | BE14: 14 | BF14: 374.17 | BG14: 14 | BH14: 280.00 | BI14: 14 | BK14: 288.00 | BL14: 10.0 | BM14: 14 | BN14: 375.17 | BO14: 14 | BP14: 280.00 | BQ14: 14 | BS14: 244.3761036 | BT14: 10.0 | BU14: 14 | BV14: 202.05 | BW14: 14 | BX14: 210.01 | BY14: 14 | CA14: 244.3761038 | CB14: 10.0 | CC14: 14 | CD14: 202.05 | CE14: 14 | CF14: 210.01 | CG14: 14 | CI14: 226.2728232 | CJ14: 10 | CK14: 14 | CL14: 187.0820276 | CM14: 14 | CN14: 194.45 | CO14: 14 | CP14: 39.1907956 | CU14: Productor B | CV14: y | CW14: =CW15*(CW16^(CW17))*(CW18^(CW19)) -> 78.4 | CX14: p | CY14: =(CY15*CY16)-((CY17*CY18)+(CY19*CY20)) -> 783.6
A15: 411.4075818 | B15: 11.0 | C15: 13 | D15: 360.5551275 | E15: 13 | G15: 411.4075818 | H15: 11.0 | I15: 13 | J15: 360.5551275 | K15: 13 | M15: 205.7037909 | N15: 11 | O15: 13 | P15: 180.2775638 | Q15: 13 | R15: 185.6151216 | S15: 13 | U15: 205.7037909 | V15: 11 | W15: 13 | X15: 180.2775638 | Y15: 13 | Z15: 185.61 | AA15: 13 | AC15: 205.7025665 | AD15: 11 | AE15: 13 | AF15: 180.276722 | AG15: 13 | AH15: 185.61 | AI15: 13 | AJ15: 25.42584451 | AM15: 205.7037909 | AN15: 11 | AO15: 13 | AP15: 361.56 | AQ15: 13 | AR15: 372.34 | AS15: 13 | AU15: 205.7037909 | AV15: 11 | AW15: 13 | AX15: 361.56 | AY15: 13 | AZ15: 372.34 | BA15: 13 | BC15: 261.82 | BD15: 11.0 | BE15: 13 | BF15: 360.56 | BG15: 13 | BH15: 260.00 | BI15: 13 | BK15: 261.82 | BL15: 11.0 | BM15: 13 | BN15: 361.56 | BO15: 13 | BP15: 260.00 | BQ15: 13 | BS15: 222.1600942 | BT15: 11.0 | BU15: 13 | BV15: 194.70 | BW15: 13 | BX15: 200.46 | BY15: 13 | CA15: 222.1600944 | CB15: 11.0 | CC15: 13 | CD15: 194.70 | CE15: 13 | CF15: 200.46 | CG15: 13 | CI15: 205.7025665 | CJ15: 11 | CK15: 13 | CL15: 180.276722 | CM15: 13 | CN15: 185.61 | CO15: 13 | CP15: 25.42584451 | CV15: A | CW15: =CW5 -> 2.0 | CX15: p | CY15: 100.0 | CZ15: py | DA15: =CY15*CY16 -> 7836.211562
A16: 377.1236166 | B16: 12.0 | C16: 12 | D16: 346.4101615 | E16: 12 | G16: 377.1236166 | H16: 12.0 | I16: 12 | J16: 346.4101615 | K16: 12 | M16: 188.5618083 | N16: 12 | O16: 12 | P16: 173.2050808 | Q16: 12 | R16: 176.7763685 | S16: 12 | U16: 188.5618083 | V16: 12 | W16: 12 | X16: 173.2050808 | Y16: 12 | Z16: 176.78 | AA16: 12 | AC16: 188.560686 | AD16: 12 | AE16: 12 | AF16: 173.204239 | AG16: 12 | AH16: 176.78 | AI16: 12 | AJ16: 15.35644698 | AM16: 188.5618083 | AN16: 12 | AO16: 12 | AP16: 347.41 | AQ16: 12 | AR16: 354.64 | AS16: 12 | AU16: 188.5618083 | AV16: 12 | AW16: 12 | AX16: 347.41 | AY16: 12 | AZ16: 354.64 | BA16: 12 | BC16: 240.00 | BD16: 12.0 | BE16: 12 | BF16: 346.41 | BG16: 12 | BH16: 240.00 | BI16: 12 | BK16: 240.00 | BL16: 12.0 | BM16: 12 | BN16: 347.41 | BO16: 12 | BP16: 240.00 | BQ16: 12 | BS16: 203.646753 | BT16: 12.0 | BU16: 12 | BV16: 187.06 | BW16: 12 | BX16: 190.92 | BY16: 12 | CA16: 203.6467532 | CB16: 12.0 | CC16: 12 | CD16: 187.06 | CE16: 12 | CF16: 190.92 | CG16: 12 | CI16: 188.560686 | CJ16: 12 | CK16: 12 | CL16: 173.204239 | CM16: 12 | CN16: 176.78 | CO16: 12 | CP16: 15.35644698 | CV16: q1 | CW16: =CY18 -> 60.9 | CX16: y | CY16: =(CW15^(1/(1-CW17-CW19)))*((CY15*CW17)/CY17)^(CW17/(1-CW17-CW19))*((CY15*CW19)/CY19)^(CW19/(1-CW17-CW19)) -> 78.4 | CZ16: q1w1 | DA16: =CY17*CY18 -> 5485.348093
A17: 348.1141077 | B17: 13.0 | C17: 11 | D17: 331.662479 | E17: 11 | G17: 348.1141077 | H17: 13.0 | I17: 11 | J17: 331.662479 | K17: 11 | M17: 174.0570538 | N17: 13 | O17: 11 | P17: 165.8312395 | Q17: 11 | R17: 167.9376154 | S17: 11 | U17: 174.0570539 | V17: 13 | W17: 11 | X17: 165.8312395 | Y17: 11 | Z17: 167.94 | AA17: 11 | AC17: 174.0560178 | AD17: 13 | AE17: 11 | AF17: 165.8303978 | AG17: 11 | AH17: 167.94 | AI17: 11 | AJ17: 8.225620066 | AM17: 174.0570538 | AN17: 13 | AO17: 11 | AP17: 332.66 | AQ17: 11 | AR17: 336.94 | AS17: 11 | AU17: 174.0570539 | AV17: 13 | AW17: 11 | AX17: 332.66 | AY17: 11 | AZ17: 336.94 | BA17: 11 | BC17: 221.54 | BD17: 13.0 | BE17: 11 | BF17: 331.66 | BG17: 11 | BH17: 220.00 | BI17: 11 | BK17: 221.54 | BL17: 13.0 | BM17: 11 | BN17: 332.66 | BO17: 11 | BP17: 220.00 | BQ17: 11 | BS17: 187.9816181 | BT17: 13.0 | BU17: 11 | BV17: 179.10 | BW17: 11 | BX17: 181.37 | BY17: 11 | CA17: 187.9816183 | CB17: 13.0 | CC17: 11 | CD17: 179.10 | CE17: 11 | CF17: 181.37 | CG17: 11 | CI17: 174.0560178 | CJ17: 13 | CK17: 11 | CL17: 165.8303978 | CM17: 11 | CN17: 167.94 | CO17: 11 | CP17: 8.225620066 | CV17: a | CW17: =CW7 -> 0.7 | CX17: w1 | CY17: 90.0 | CZ17: q2w2 | DA17: =CY19*CY20 -> 1567.242312
A18: 323.2488143 | B18: 14.0 | C18: 10 | D18: 316.227766 | E18: 10 | G18: 323.2488143 | H18: 14.0 | I18: 10 | J18: 316.227766 | K18: 10 | M18: 161.6244071 | N18: 14 | O18: 10 | P18: 158.113883 | Q18: 10 | R18: 159.0988624 | S18: 10 | U18: 161.6244072 | V18: 14 | W18: 10 | X18: 158.113883 | Y18: 10 | Z18: 159.10 | AA18: 10 | AC18: 161.6234451 | AD18: 14 | AE18: 10 | AF18: 158.1130413 | AG18: 10 | AH18: 159.10 | AI18: 10 | AJ18: 3.510403872 | AM18: 161.6244071 | AN18: 14 | AO18: 10 | AP18: 317.23 | AQ18: 10 | AR18: 319.24 | AS18: 10 | AU18: 161.6244072 | AV18: 14 | AW18: 10 | AX18: 317.23 | AY18: 10 | AZ18: 319.24 | BA18: 10 | BC18: 205.71 | BD18: 14.0 | BE18: 10 | BF18: 316.23 | BG18: 10 | BH18: 200.00 | BI18: 10 | BK18: 205.71 | BL18: 14.0 | BM18: 10 | BN18: 317.23 | BO18: 10 | BP18: 200.00 | BQ18: 10 | BS18: 174.5543597 | BT18: 14.0 | BU18: 10 | BV18: 170.76 | BW18: 10 | BX18: 171.83 | BY18: 10 | CA18: 174.5543599 | CB18: 14.0 | CC18: 10 | CD18: 170.76 | CE18: 10 | CF18: 171.83 | CG18: 10 | CI18: 161.6234451 | CJ18: 14 | CK18: 10 | CL18: 158.1130413 | CM18: 10 | CN18: 159.10 | CO18: 10 | CP18: 3.510403872 | CV18: q2 | CW18: =CY20 -> 52.2 | CX18: x1 | CY18: =(CW17*CY15*CY16)/CY17 -> 60.9 | CZ18: costo | DA18: =DA17+DA16 -> 7052.590406
A19: 301.6988933 | B19: 15.0 | C19: 9 | D19: 300 | E19: 9 | G19: 301.6988933 | H19: 15.0 | I19: 9 | J19: 300 | K19: 9 | M19: 150.8494467 | N19: 15 | O19: 9 | P19: 150 | Q19: 9 | R19: 150.2601093 | S19: 9 | U19: 150.8494467 | V19: 15 | W19: 9 | X19: 150 | Y19: 9 | Z19: 150.26 | AA19: 9 | AC19: 150.8485488 | AD19: 15 | AE19: 9 | AF19: 149.9991583 | AG19: 9 | AH19: 150.26 | AI19: 9 | AJ19: 0.8493905379 | AM19: 150.8494467 | AN19: 15 | AO19: 9 | AP19: 301.00 | AQ19: 9 | AR19: 301.54 | AS19: 9 | AU19: 150.8494467 | AV19: 15 | AW19: 9 | AX19: 301.00 | AY19: 9 | AZ19: 301.54 | BA19: 9 | BC19: 192.00 | BD19: 15.0 | BE19: 9 | BF19: 300.00 | BG19: 9 | BH19: 180.00 | BI19: 9 | BK19: 192.00 | BL19: 15.0 | BM19: 9 | BN19: 301.00 | BO19: 9 | BP19: 180.00 | BQ19: 9 | BS19: 162.9174024 | BT19: 15.0 | BU19: 9 | BV19: 162.00 | BW19: 9 | BX19: 162.28 | BY19: 9 | CA19: 162.9174026 | CB19: 15.0 | CC19: 9 | CD19: 162.00 | CE19: 9 | CF19: 162.28 | CG19: 9 | CI19: 150.8485488 | CJ19: 15 | CK19: 9 | CL19: 149.9991583 | CM19: 9 | CN19: 150.26 | CO19: 9 | CP19: 0.8493905379 | CV19: b | CW19: =CW9 -> 0.2 | CX19: w2 | CY19: 30.0 | CZ19: beneficio | DA19: =DA15-DA18 -> 783.6211562
A20: 282.8427125 | B20: 16.0 | C20: 8 | D20: 282.8427125 | E20: 8 | G20: 282.8427125 | H20: 16.0 | I20: 8 | J20: 282.8427125 | K20: 8 | M20: 141.4213562 | N20: 16 | O20: 8 | P20: 141.4213562 | Q20: 8 | R20: 141.4213562 | S20: 8 | U20: 141.4213563 | V20: 16 | W20: 8 | X20: 141.4213562 | Y20: 8 | Z20: 141.42 | AA20: 8 | AC20: 141.4205145 | AD20: 16 | AE20: 8 | AF20: 141.4205145 | AG20: 8 | AH20: 141.42 | AI20: 8 | AJ20: 8.388951755e-10 | AM20: 141.4213562 | AN20: 16 | AO20: 8 | AP20: 283.84 | AQ20: 8 | AR20: 283.84 | AS20: 8 | AU20: 141.4213563 | AV20: 16 | AW20: 8 | AX20: 283.84 | AY20: 8 | AZ20: 283.84 | BA20: 8 | BC20: 180.00 | BD20: 16.0 | BE20: 8 | BF20: 282.84 | BG20: 8 | BH20: 160.00 | BI20: 8 | BK20: 180.00 | BL20: 16.0 | BM20: 8 | BN20: 283.84 | BO20: 8 | BP20: 160.00 | BQ20: 8 | BS20: 152.7350647 | BT20: 16.0 | BU20: 8 | BV20: 152.74 | BW20: 8 | BX20: 152.74 | BY20: 8 | CA20: 152.7350649 | CB20: 16.0 | CC20: 8 | CD20: 152.74 | CE20: 8 | CF20: 152.74 | CG20: 8 | CI20: 141.4205145 | CJ20: 16 | CK20: 8 | CL20: 141.4205145 | CM20: 8 | CN20: 141.42 | CO20: 8 | CP20: 8.388951755e-10 | CX20: x2 | CY20: =(CW19*CY15*CY16)/CY19 -> 52.2
A21: 266.2049059 | B21: 17.0 | C21: 7 | D21: 264.5751311 | E21: 7 | G21: 266.2049059 | H21: 17.0 | I21: 7 | J21: 264.5751311 | K21: 7 | M21: 133.1024529 | N21: 17 | O21: 7 | P21: 132.2875656 | Q21: 7 | R21: 132.5826032 | S21: 7 | U21: 133.102453 | V21: 17 | W21: 7 | X21: 132.2875656 | Y21: 7 | Z21: 132.58 | AA21: 7 | AC21: 133.1016607 | AD21: 17 | AE21: 7 | AF21: 132.2867238 | AG21: 7 | AH21: 132.58 | AI21: 7 | AJ21: 0.814936891 | AM21: 133.1024529 | AN21: 17 | AO21: 7 | AP21: 265.58 | AQ21: 7 | AR21: 266.14 | AS21: 7 | AU21: 133.102453 | AV21: 17 | AW21: 7 | AX21: 265.58 | AY21: 7 | AZ21: 266.14 | BA21: 7 | BC21: 169.41 | BD21: 17.0 | BE21: 7 | BF21: 264.58 | BG21: 7 | BH21: 140.00 | BI21: 7 | BK21: 169.41 | BL21: 17.0 | BM21: 7 | BN21: 265.58 | BO21: 7 | BP21: 140.00 | BQ21: 7 | BS21: 143.7506492 | BT21: 17.0 | BU21: 7 | BV21: 142.87 | BW21: 7 | BX21: 143.19 | BY21: 7 | CA21: 143.7506493 | CB21: 17.0 | CC21: 7 | CD21: 142.87 | CE21: 7 | CF21: 143.19 | CG21: 7 | CI21: 133.1016607 | CJ21: 17 | CK21: 7 | CL21: 132.2867238 | CM21: 7 | CN21: 132.58 | CO21: 7 | CP21: 0.814936891
A22: 251.4157444 | B22: 18.0 | C22: 6 | D22: 244.9489743 | E22: 6 | G22: 251.4157444 | H22: 18.0 | I22: 6 | J22: 244.9489743 | K22: 6 | M22: 125.7078722 | N22: 18 | O22: 6 | P22: 122.4744871 | Q22: 6 | R22: 123.7438501 | S22: 6 | U22: 125.7078722 | V22: 18 | W22: 6 | X22: 122.4744871 | Y22: 6 | Z22: 123.74 | AA22: 6 | AC22: 125.707124 | AD22: 18 | AE22: 6 | AF22: 122.4736454 | AG22: 6 | AH22: 123.74 | AI22: 6 | AJ22: 3.233478599 | AM22: 125.7078722 | AN22: 18 | AO22: 6 | AP22: 245.95 | AQ22: 6 | AR22: 248.44 | AS22: 6 | AU22: 125.7078722 | AV22: 18 | AW22: 6 | AX22: 245.95 | AY22: 6 | AZ22: 248.44 | BA22: 6 | BC22: 160.00 | BD22: 18.0 | BE22: 6 | BF22: 244.95 | BG22: 6 | BH22: 120.00 | BI22: 6 | BK22: 160.00 | BL22: 18.0 | BM22: 6 | BN22: 245.95 | BO22: 6 | BP22: 120.00 | BQ22: 6 | BS22: 135.764502 | BT22: 18.0 | BU22: 6 | BV22: 132.27 | BW22: 6 | BX22: 133.64 | BY22: 6 | CA22: 135.7645021 | CB22: 18.0 | CC22: 6 | CD22: 132.27 | CE22: 6 | CF22: 133.64 | CG22: 6 | CI22: 125.707124 | CJ22: 18 | CK22: 6 | CL22: 122.4736454 | CM22: 6 | CN22: 123.74 | CO22: 6 | CP22: 3.233478599
A23: 238.1833368 | B23: 19.0 | C23: 5 | D23: 223.6067977 | E23: 5 | G23: 238.1833368 | H23: 19.0 | I23: 5 | J23: 223.6067977 | K23: 5 | M23: 119.0916684 | N23: 19 | O23: 5 | P23: 111.8033989 | Q23: 5 | R23: 114.9050971 | S23: 5 | U23: 119.0916684 | V23: 19 | W23: 5 | X23: 111.8033989 | Y23: 5 | Z23: 114.91 | AA23: 5 | AC23: 119.0909596 | AD23: 19 | AE23: 5 | AF23: 111.8025571 | AG23: 5 | AH23: 114.90 | AI23: 5 | AJ23: 7.288402443 | AM23: 119.0916684 | AN23: 19 | AO23: 5 | AP23: 224.61 | AQ23: 5 | AR23: 230.74 | AS23: 5 | AU23: 119.0916684 | AV23: 19 | AW23: 5 | AX23: 224.61 | AY23: 5 | AZ23: 230.74 | BA23: 5 | BC23: 151.58 | BD23: 19.0 | BE23: 5 | BF23: 223.61 | BG23: 5 | BH23: 100.00 | BI23: 5 | BK23: 151.58 | BL23: 19.0 | BM23: 5 | BN23: 224.61 | BO23: 5 | BP23: 100.00 | BQ23: 5 | BS23: 128.6190019 | BT23: 19.0 | BU23: 5 | BV23: 120.75 | BW23: 5 | BX23: 124.10 | BY23: 5 | CA23: 128.619002 | CB23: 19.0 | CC23: 5 | CD23: 120.75 | CE23: 5 | CF23: 124.10 | CG23: 5 | CI23: 119.0909596 | CJ23: 19 | CK23: 5 | CL23: 111.8025571 | CM23: 5 | CN23: 114.90 | CO23: 5 | CP23: 7.288402443
A24: 226.27417 | B24: 20.0 | C24: 4 | D24: 200 | E24: 4 | G24: 226.27417 | H24: 20.0 | I24: 4 | J24: 200 | K24: 4 | M24: 113.137085 | N24: 20 | O24: 4 | P24: 100 | Q24: 4 | R24: 106.066344 | S24: 4 | U24: 113.137085 | V24: 20 | W24: 4 | X24: 100 | Y24: 4 | Z24: 106.07 | AA24: 4 | AC24: 113.1364116 | AD24: 20 | AE24: 4 | AF24: 99.99915826 | AG24: 4 | AH24: 106.07 | AI24: 4 | AJ24: 13.13725334 | AM24: 113.137085 | AN24: 20 | AO24: 4 | AP24: 201.00 | AQ24: 4 | AR24: 213.04 | AS24: 4 | AU24: 113.137085 | AV24: 20 | AW24: 4 | AX24: 201.00 | AY24: 4 | AZ24: 213.04 | BA24: 4 | BC24: 144.00 | BD24: 20.0 | BE24: 4 | BF24: 200.00 | BG24: 4 | BH24: 80.00 | BI24: 4 | BK24: 144.00 | BL24: 20.0 | BM24: 4 | BN24: 201.00 | BO24: 4 | BP24: 80.00 | BQ24: 4 | BS24: 122.1880518 | BT24: 20.0 | BU24: 4 | BV24: 108.00 | BW24: 4 | BX24: 114.55 | BY24: 4 | CA24: 122.1880519 | CB24: 20.0 | CC24: 4 | CD24: 108.00 | CE24: 4 | CF24: 114.55 | CG24: 4 | CI24: 113.1364116 | CJ24: 20 | CK24: 4 | CL24: 99.99915826 | CM24: 4 | CN24: 106.07 | CO24: 4 | CP24: 13.13725334
A25: 215.4992095 | B25: 21.0 | C25: 3 | D25: 173.2050808 | E25: 3 | G25: 215.4992095 | H25: 21.0 | I25: 3 | J25: 173.2050808 | K25: 3 | M25: 107.7496048 | N25: 21 | O25: 3 | P25: 86.60254038 | Q25: 3 | R25: 97.22759093 | S25: 3 | U25: 107.7496048 | V25: 21 | W25: 3 | X25: 86.60254038 | Y25: 3 | Z25: 97.23 | AA25: 3 | AC25: 107.7489634 | AD25: 21 | AE25: 3 | AF25: 86.60169864 | AG25: 3 | AH25: 97.23 | AI25: 3 | AJ25: 21.14726479 | AM25: 107.7496048 | AN25: 21 | AO25: 3 | AP25: 174.21 | AQ25: 3 | AR25: 195.34 | AS25: 3 | AU25: 107.7496048 | AV25: 21 | AW25: 3 | AX25: 174.21 | AY25: 3 | AZ25: 195.34 | BA25: 3 | BC25: 137.14 | BD25: 21.0 | BE25: 3 | BF25: 173.21 | BG25: 3 | BH25: 60.00 | BI25: 3 | BK25: 137.14 | BL25: 21.0 | BM25: 3 | BN25: 174.21 | BO25: 3 | BP25: 60.00 | BQ25: 3 | BS25: 116.3695731 | BT25: 21.0 | BU25: 3 | BV25: 93.53 | BW25: 3 | BX25: 105.01 | BY25: 3 | CA25: 116.3695733 | CB25: 21.0 | CC25: 3 | CD25: 93.53 | CE25: 3 | CF25: 105.01 | CG25: 3 | CI25: 107.7489634 | CJ25: 21 | CK25: 3 | CL25: 86.60169864 | CM25: 3 | CN25: 97.23 | CO25: 3 | CP25: 21.14726479
A26: 205.7037909 | B26: 22.0 | C26: 2 | D26: 141.4213562 | E26: 2 | G26: 205.7037909 | H26: 22.0 | I26: 2 | J26: 141.4213562 | K26: 2 | M26: 102.8518955 | N26: 22 | O26: 2 | P26: 70.71067812 | Q26: 2 | R26: 88.38883787 | S26: 2 | U26: 102.8518955 | V26: 22 | W26: 2 | X26: 70.71067812 | Y26: 2 | Z26: 88.39 | AA26: 2 | AC26: 102.8512833 | AD26: 22 | AE26: 2 | AF26: 70.70983638 | AG26: 2 | AH26: 88.39 | AI26: 2 | AJ26: 32.14144689 | AM26: 102.8518955 | AN26: 22 | AO26: 2 | AP26: 142.42 | AQ26: 2 | AR26: 177.64 | AS26: 2 | AU26: 102.8518955 | AV26: 22 | AW26: 2 | AX26: 142.42 | AY26: 2 | AZ26: 177.64 | BA26: 2 | BC26: 130.91 | BD26: 22.0 | BE26: 2 | BF26: 141.42 | BG26: 2 | BH26: 40.00 | BI26: 2 | BK26: 130.91 | BL26: 22.0 | BM26: 2 | BN26: 142.42 | BO26: 2 | BP26: 40.00 | BQ26: 2 | BS26: 111.0800471 | BT26: 22.0 | BU26: 2 | BV26: 76.37 | BW26: 2 | BX26: 95.46 | BY26: 2 | CA26: 111.0800472 | CB26: 22.0 | CC26: 2 | CD26: 76.37 | CE26: 2 | CF26: 95.46 | CG26: 2 | CI26: 102.8512833 | CJ26: 22 | CK26: 2 | CL26: 70.70983638 | CM26: 2 | CN26: 88.39 | CO26: 2 | CP26: 32.14144689
A27: 196.7601478 | B27: 23.0 | C27: 1 | D27: 100 | E27: 1 | G27: 196.7601478 | H27: 23.0 | I27: 1 | J27: 100 | K27: 1 | M27: 98.38007391 | N27: 23 | O27: 1 | P27: 50 | Q27: 1 | R27: 79.5500848 | S27: 1 | U27: 98.38007392 | V27: 23 | W27: 1 | X27: 50 | Y27: 1 | Z27: 79.55 | AA27: 1 | AC27: 98.37948835 | AD27: 23 | AE27: 1 | AF27: 49.99915826 | AG27: 1 | AH27: 79.55 | AI27: 1 | AJ27: 48.38033009 | AM27: 98.38007391 | AN27: 23 | AO27: 1 | AP27: 101.00 | AQ27: 1 | AR27: 159.94 | AS27: 1 | AU27: 98.38007392 | AV27: 23 | AW27: 1 | AX27: 101.00 | AY27: 1 | AZ27: 159.94 | BA27: 1 | BC27: 125.22 | BD27: 23.0 | BE27: 1 | BF27: 100.00 | BG27: 1 | BH27: 20.00 | BI27: 1 | BK27: 125.22 | BL27: 23.0 | BM27: 1 | BN27: 101.00 | BO27: 1 | BP27: 20.00 | BQ27: 1 | BS27: 106.2504798 | BT27: 23.0 | BU27: 1 | BV27: 54.00 | BW27: 1 | BX27: 85.91 | BY27: 1 | CA27: 106.2504799 | CB27: 23.0 | CC27: 1 | CD27: 54.00 | CE27: 1 | CF27: 85.92 | CG27: 1 | CI27: 98.37948835 | CJ27: 23 | CK27: 1 | CL27: 49.99915826 | CM27: 1 | CN27: 79.55 | CO27: 1 | CP27: 48.38033009
A28: 188.5618083 | B28: 24.0 | C28: 0 | D28: 0 | E28: 0 | G28: 188.5618083 | H28: 24.0 | I28: 0 | J28: 0 | K28: 0 | M28: 94.28090416 | N28: 24 | O28: 0 | P28: 0 | Q28: 0 | R28: 70.71133174 | S28: 0 | U28: 94.28090417 | V28: 24 | W28: 0 | X28: 0 | Y28: 0 | Z28: 70.71 | AA28: 0 | AC28: 94.280343 | AD28: 24 | AE28: 0 | AF28: -0.0008417420298 | AG28: 0 | AH28: 70.71 | AI28: 0 | AJ28: 94.28118474 | AM28: 94.28090416 | AN28: 24 | AO28: 0 | AP28: 1.00 | AQ28: 0 | AR28: 142.24 | AS28: 0 | AU28: 94.28090417 | AV28: 24 | AW28: 0 | AX28: 1.00 | AY28: 0 | AZ28: 142.24 | BA28: 0 | BC28: 120.00 | BD28: 24.0 | BE28: 0 | BF28: 0 | BG28: 0 | BH28: 0 | BI28: 0 | BK28: 120.00 | BL28: 24.0 | BM28: 0 | BN28: 1.00 | BO28: 0 | BP28: 0 | BQ28: 0 | BS28: 101.8233765 | BT28: 24.0 | BU28: 0 | BV28: 0 | BW28: 0 | BX28: 76.37 | BY28: 0 | CA28: 101.8233766 | CB28: 24.0 | CC28: 0 | CD28: 0 | CE28: 0 | CF28: 76.37 | CG28: 0 | CI28: 94.280343 | CJ28: 24 | CK28: 0 | CL28: -0.0008417420298 | CM28: 0 | CN28: 70.71 | CO28: 0 | CP28: 94.28118474
A30: Función Producción
B31: Caso 1 | C31: Caso 2 | M31: Función Producción | AM31: Función Producción | BC31: Función Producción | BS31: Función Producción
A32: A | B32: =EOC1central!C8 -> 100.0 | C32: =EOC1central!D8 -> 100.0 | N32: Caso 1 | O32: Caso 2 | P32: Compensada | AN32: Caso 1 | AO32: Caso 2 | BD32: Caso 1 | BE32: Caso 2 | BT32: Caso 1 | BU32: Caso 2 | BV32: Compensada
A33: alfa | B33: =EOC1central!C9 -> 0.5 | C33: =EOC1central!D9 -> 0.5 | M33: B | N33: =EOC1descentral_ESI!C8 -> 0 | O33: =EOC1descentral_ESI!D8 -> 0 | P33: =(O45-N45)*-1 -> -0.0 | AM33: B | AN33: =EOC1descenmaxben!$C8 -> 1.0 | AO33: =EOC1descenmaxben!D8 -> 1.0 | BC33: B | BS33: B | BT33: =EOC1descentral!C8 -> 0 | BU33: =EOC1descentral!D8 -> 0 | BV33: =(BU45-BT45)*-1 -> -0.0
A34: qbarra | B34: =EOC1central!C10 -> 24.0 | C34: =EOC1central!D10 -> 24.0 | M34: A | N34: =EOC1descentral_ESI!C9 -> 50.0 | O34: =EOC1descentral_ESI!D9 -> 50.0 | P34: =O34 -> 50.0 | AM34: A | AN34: =EOC1descenmaxben!$C9 -> 100.0 | AO34: =EOC1descenmaxben!D9 -> 100.0 | BC34: A | BS34: A | BT34: =EOC1descentral!C9 -> 54.0 | BU34: =EOC1descentral!D9 -> 54.0 | BV34: =BU34 -> 54.0
M35: alfa | N35: =EOC1descentral_ESI!C10 -> 0.5 | O35: =EOC1descentral_ESI!D10 -> 0.5 | P35: =O35 -> 0.5 | AM35: alfa | AN35: =EOC1descenmaxben!$C10 -> 0.5 | AO35: =EOC1descenmaxben!D10 -> 0.5 | BC35: alfa | BS35: alfa | BT35: =EOC1descentral!C10 -> 0.5 | BU35: =EOC1descentral!D10 -> 0.5 | BV35: =BU35 -> 0.5
B36: Caso 1 | C36: Caso 2 | M36: qbarra | N36: =EOC1descentral_ESI!C11 -> 24.0 | O36: =EOC1descentral_ESI!D11 -> 24.0 | P36: =O36 -> 24.0 | AM36: qbarra | AN36: =EOC1descenmaxben!$C11 -> 24.0 | AO36: =EOC1descenmaxben!D11 -> 24.0 | BC36: qbarra | BD36: =EOC1descenmaxutil!C11 -> 24.0 | BE36: =EOC1descenmaxutil!D11 -> 24.0 | BS36: qbarra | BT36: =EOC1descentral!C11 -> 24.0 | BU36: =EOC1descentral!D11 -> 24.0 | BV36: =BU36 -> 24.0
A37: Consumo | B37: =B32*(B38^(B33)) -> 282.8 | C37: =C32*(C38^(C33)) -> 282.8
A38: Trabajo | B38: =B34*((B45*B33)/(B44+(B45*B33))) -> 8.0 | C38: =C34*((C45*C33)/(C44+(C45*C33))) -> 8.0 | M38: Función Utilidad | AM38: Función Utilidad | BC38: Función Utilidad | BS38: Función Utilidad
A39: Ocio | B39: =B34-B38 -> 16.0 | C39: =C34-C38 -> 16.0 | N39: Caso 1 | O39: Caso 2 | P39: Compensada | AN39: Caso 1 | AO39: Caso 2 | BD39: Caso 1 | BE39: Caso 2 | BT39: Caso 1 | BU39: Caso 2 | BV39: Compensada
M40: u | N40: =N67^(N41)*N65^(N42) -> 47.6 | O40: =Q67^(O41)*Q65^(O42) -> 47.6 | P40: =T67^(P41)*T65^(P42) -> 47.6 | AM40: u | BC40: u | BD40: =BD47^(BD41)*BD45^(BD42) -> 53.66563146 | BE40: =BE47^(BE41)*BE45^(BE42) -> 53.66563146 | BS40: u | BT40: =BT67^(BT41)*BT65^(BT42) -> 49.4 | BU40: =BW67^(BU41)*BW65^(BU42) -> 49.4 | BV40: =BZ67^(BV41)*BZ65^(BV42) -> 
A41: Función Utilidad | M41: beta | N41: =EOC1descentral_ESI!C16 -> 0.5 | O41: =EOC1descentral_ESI!D16 -> 0.5 | P41: =O41 -> 0.5 | AM41: beta | BC41: beta | BD41: =EOC1descenmaxutil!C9 -> 0.5 | BE41: =EOC1descenmaxutil!D9 -> 0.5 | BS41: beta | BT41: =EOC1descentral!C16 -> 0.5 | BU41: =EOC1descentral!D16 -> 0.5 | BV41: =BU41 -> 0.5
B42: Caso 1 | C42: Caso 2 | M42: gama | N42: =EOC1descentral_ESI!C17 -> 0.5 | O42: =EOC1descentral_ESI!D17 -> 0.5 | P42: =O42 -> 0.5 | AM42: gama | BC42: gama | BD42: =EOC1descenmaxutil!C10 -> 0.5 | BE42: =EOC1descenmaxutil!D10 -> 0.5 | BS42: gama | BT42: =EOC1descentral!C17 -> 0.5 | BU42: =EOC1descentral!D17 -> 0.5 | BV42: =BU42 -> 0.5
A43: u | B43: =B39^(B44)*B37^(B45) -> 67.3 | C43: =C39^(C44)*C37^(C45) -> 67.3
A44: beta | B44: =EOC1central!C20 -> 0.5 | C44: =EOC1central!D20 -> 0.5 | N44: Caso 1 | O44: Caso 2 | P44: Compensada | AN44: Caso 1 | AO44: Caso 2 | BD44: Caso 1 | BE44: Caso 2 | BT44: Caso 1 | BU44: Caso 2 | BV44: Compensada
A45: gama | B45: =EOC1central!C21 -> 0.5 | C45: =EOC1central!D21 -> 0.5 | M45: Consumo | N45: =N34*((N49/(N35*N48*N34))^(N35/(N35-1))) -> 141.4 | O45: =O34*((O49/(O35*O48*O34))^(O35/(O35-1))) -> 141.4 | P45: =(P34*((P49/(P35*P48*P34))^(P35/(P35-1))))+P33 -> 141.4 | AM45: Producción | AN45: =AN33+AN34*(AN46^(AN35)) -> 283.5 | AO45: =AO33+AO34*(AO46^(AO35)) -> 283.5 | BC45: Consumo | BD45: =((BD42/(BD42+BD41))*((BD52+(BD49*BD36))/BD48)) -> 240.0 | BE45: =((BE42/(BE42+BE41))*((BE52+(BE49*BE36))/BE48)) -> 240.0 | BS45: Consumo | BT45: =BT34*((BT49/(BT35*BT48*BT34))^(BT35/(BT35-1))) -> 152.7 | BU45: =BU34*((BU49/(BU35*BU48*BU34))^(BU35/(BU35-1))) -> 152.7 | BV45: =(BV34*((BV49/(BV35*BV48*BV34))^(BV35/(BV35-1))))+BV33 -> 
M46: Trabajo | N46: =(N49/(N35*N48*N34))^(1/(N35-1)) -> 8.0 | O46: =(O49/(O35*O48*O34))^(1/(O35-1)) -> 8.0 | P46: =(P49/(P35*P48*P34))^(1/(P35-1)) -> 8.0 | AM46: Trabajo | AN46: =(AN49/(AN35*AN48*AN34))^(1/(AN35-1)) -> 8.0 | AO46: =(AO49/(AO35*AO48*AO34))^(1/(AO35-1)) -> 8.0 | BC46: Trabajo | BD46: =BD36-((BD41/(BD42+BD41))*((BD52+(BD49*BD36))/BD49)) -> 12.0 | BE46: =BE36-((BE41/(BE42+BE41))*((BE52+(BE49*BE36))/BE49)) -> 12.0 | BS46: Trabajo | BT46: =(BT49/(BT35*BT48*BT34))^(1/(BT35-1)) -> 8.0 | BU46: =(BU49/(BU35*BU48*BU34))^(1/(BU35-1)) -> 8.0 | BV46: =(BV49/(BV35*BV48*BV34))^(1/(BV35-1)) -> 
B47: Caso 1 | C47: Caso 2 | M47: Ocio | N47: =N36-N46 -> 16.0 | O47: =O36-O46 -> 16.0 | P47: =P36-P46 -> 16.0 | AM47: Ocio | AN47: =AN36-AN46 -> 16.0 | AO47: =AO36-AO46 -> 16.0 | BC47: Ocio | BD47: =BD36-BD46 -> 12.0 | BE47: =BE36-BE46 -> 12.0 | BS47: Ocio | BT47: =BT36-BT46 -> 16.0 | BU47: =BU36-BU46 -> 16.0 | BV47: =BV36-BV46 -> 
A48: PMq | B48: =B33*B32*(B38^(B33-1)) -> 17.7 | C48: =C33*C32*(C38^(C33-1)) -> 17.7 | M48: Precio Bien | N48: =EOC1descentral_ESI!C24 -> 1.0 | O48: =EOC1descentral_ESI!D24 -> 1.0 | P48: =O48 -> 1.0 | AM48: Precio Bien | AN48: =EOC1descenmaxben!C17 -> 1.0 | AO48: =EOC1descenmaxben!D17 -> 1.0 | BC48: Precio Bien | BD48: =EOC1descenmaxutil!C17 -> 1.0 | BE48: =EOC1descenmaxutil!D17 -> 1.0 | BS48: Precio Bien | BT48: =EOC1descentral!C24 -> 1.0 | BU48: =EOC1descentral!D24 -> 1.0 | BV48: =BU48 -> 1.0
A49: RMS | B49: =(B44*B37)/(B45*B39) -> 17.7 | C49: =(C44*C37)/(C45*C39) -> 17.7 | M49: Salario | N49: =EOC1descentral_ESI!C25 -> 8.8 | O49: =EOC1descentral_ESI!D25 -> 8.8 | P49: =EOC1descentral_ESI!E25 -> 8.8 | AM49: Salario | AN49: =EOC1descenmaxben!C18 -> 17.7 | AO49: =EOC1descenmaxben!D18 -> 17.7 | BC49: Salario | BD49: =EOC1descenmaxutil!C18 -> 20.0 | BE49: =EOC1descenmaxutil!D18 -> 20.0 | BS49: Salario | BT49: =EOC1descentral!C25 -> 9.5 | BU49: =EOC1descentral!D25 -> 9.5 | BV49: =EOC1descentral_ESI!BK25 -> 0
M50: Beneficio | N50: =N48*N45-N46*N49 -> 70.7 | O50: =O48*O45-O46*O49 -> 70.7 | P50: =P48*P45-P46*P49 -> 70.7 | AM50: Ingreso Total | AN50: =AN45*AN48 -> 283.5 | AO50: =AO45*AO48 -> 283.5 | BC50: Ingreso Total | BS50: Beneficio | BT50: =BT48*BT45-BT46*BT49 -> 76.4 | BU50: =BU48*BU45-BU46*BU49 -> 76.4 | BV50: =BV48*BV45-BV46*BV49 -> 
M51: Salario Real | N51: =N49/N48 -> 8.8 | O51: =O49/O48 -> 8.8 | P51: =P49/P48 -> 8.8 | AM51: Costo Total | AN51: =AN46*AN49 -> 141.2 | AO51: =AO46*AO49 -> 141.2 | BC51: Costo Total | BS51: Salario Real | BT51: =BT49/BT48 -> 9.5 | BU51: =BU49/BU48 -> 9.5 | BV51: =BV49/BV48 -> 0
M52: Exc. Dem q | N52: =N46-N66 -> 0.0 | O52: =O46-Q66 -> 0.0 | P52: =P46-T66 -> 0.0 | AM52: Beneficio | AN52: =AN48*AN45-AN46*AN49 -> 142.2 | AO52: =AO48*AO45-AO46*AO49 -> 142.2 | BC52: Beneficio | BD52: =EOC1descenmaxutil!C19 -> 0 | BE52: =EOC1descenmaxutil!D19 -> 0 | BS52: Exc. Dem q | BT52: =BT46-BT66 -> 0.0 | BU52: =BU46-BW66 -> 0.0 | BV52: =BV46-BZ66 -> 
AM53: Salario Real | AN53: =AN49/AN48 -> 17.7 | AO53: =AO49/AO48 -> 17.7 | BC53: Salario Real | BD53: =BD49/BD48 -> 20.0 | BE53: =BE49/BE48 -> 20.0
N55: Caso 1 | O55: Caso 2 | P55: Compensada | AN55: Caso 1 | AO55: Caso 2 | BD55: Caso 1 | BE55: Caso 2 | BT55: Caso 1 | BU55: Caso 2 | BV55: Compensada
M56: PMq | N56: =(N41/N42)*(N45/(N36-N46)) -> 8.8 | O56: =(O41/O42)*(O45/(O36-O46)) -> 8.8 | P56: =(P41/P42)*(P45/(P36-P46)) -> 8.8 | AM56: PMq | AN56: =AN35*AN34*(AN46^(AN35-1)) -> 17.7 | AO56: =AO35*AO34*(AO46^(AO35-1)) -> 17.7 | BC56: PMq | BD56: =BD35*BD34*(BD46^(BD35-1)) -> 0 | BE56: =BE35*BE34*(BE46^(BE35-1)) -> 0 | BS56: PMq | BT56: =(BT41/BT42)*(BT45/(BT36-BT46)) -> 9.5 | BU56: =(BU41/BU42)*(BU45/(BU36-BU46)) -> 9.5 | BV56: =(BV41/BV42)*(BV45/(BV36-BV46)) -> 
M57: RMS | N57: =N35*N34*(N46^(N35-1)) -> 8.8 | O57: =O35*O34*(O46^(O35-1)) -> 8.8 | P57: =P35*P34*(P46^(P35-1)) -> 8.8 | AM57: RMS | BC57: RMS | BD57: =(BD41*BD45)/(BD42*BD47) -> 20.0 | BE57: =(BE41*BE45)/(BE42*BE47) -> 20.0 | BS57: RMS | BT57: =BT35*BT34*(BT46^(BT35-1)) -> 9.5 | BU57: =BU35*BU34*(BU46^(BU35-1)) -> 9.5 | BV57: =BV35*BV34*(BV46^(BV35-1)) -> 
N59: Trabajo | O59: Consumo | AN59: Trabajo | AO59: Consumo | BD59: Trabajo | BE59: Consumo | BT59: Trabajo | BU59: Consumo
M60: ET | N60: =O46-N46 -> 0.0 | O60: =O45-N45 -> 0.0 | AM60: ET | BC60: ET | BS60: ET | BT60: =BU46-BT46 -> 0.0 | BU60: =BU45-BT45 -> 0.0
M61: EW | N61: =O46-P46 -> 0.0 | O61: =O45-P45 -> 0.0 | AM61: EW | BC61: EW | BS61: EW | BT61: =BU46-BV46 ->  | BU61: =BU45-BV45 -> 
M62: ES | N62: =P46-N46 -> -0.0 | O62: =P45-N45 -> -0.0 | AM62: ES | BC62: ES | BS62: ES | BT62: =BV46-BT46 ->  | BU62: =BV45-BT45 -> 
M64: FUNCIÓN UTILIDAD 1 | P64: FUNCIÓN UTILIDAD 2 | S64: FUNCIÓN UTILIDAD COMPENSADA | AM64: FUNCIÓN UTILIDAD 1 | AP64: FUNCIÓN UTILIDAD 2 | BC64: FUNCIÓN UTILIDAD 1 | BF64: FUNCIÓN UTILIDAD 2 | BS64: FUNCIÓN UTILIDAD 1 | BV64: FUNCIÓN UTILIDAD 2 | BY64: FUNCIÓN UTILIDAD COMPENSADA
M65: c | N65: =(N42/(N41+N42))*(((N50+(N49*N36))/N48)) -> 141.4207026 | P65: c | Q65: =(O42/(O41+O42))*(((O50+(O49*O36))/O48)) -> 141.4202818 | S65: c | T65: =(P42/(P41+P42))*(((P50+(P49*P36))/P48)) -> 141.4207816 | AM65: c | AN65: =(AN42/(AN41+AN42))*(((AN52+(AN49*AN36))/AN48)) ->  | AP65: c | AQ65: =(AO42/(AO41+AO42))*(((AO52+(AO49*AO36))/AO48)) ->  | BC65: c | BD65: =(BD42/(BD41+BD42))*(((BD52+(BD49*BD36))/BD48)) -> 240 | BF65: c | BG65: =(BE42/(BE41+BE42))*(((BE52+(BE49*BE36))/BE48)) -> 240 | BS65: c | BT65: =(BT42/(BT41+BT42))*(((BT50+(BT49*BT36))/BT48)) -> 152.7346313 | BV65: c | BW65: =(BU42/(BU41+BU42))*(((BU50+(BU49*BU36))/BU48)) -> 152.7322489 | BY65: c | BZ65: =(BV42/(BV41+BV42))*(((BV50+(BV49*BV36))/BV48)) -> 
M66: q | N66: =N36-N67 -> 7.999926051 | P66: q | Q66: =O36-Q67 -> 7.999878434 | S66: q | T66: =P36-T67 -> 8.000030215 | AM66: q | AN66: =AN36-AN67 ->  | AP66: q | AQ66: =AO36-AQ67 ->  | BC66: q | BD66: =BD36-BD67 -> 12 | BF66: q | BG66: =BE36-BG67 -> 12 | BS66: q | BT66: =BT36-BT67 -> 7.999954593 | BV66: q | BW66: =BU36-BW67 -> 7.999705004 | BY66: q | BZ66: =BV36-BZ67 -> 
M67: qb-q | N67: =(N41/(N41+N42))*((N50+(N49*N36))/N49) -> 16.00007395 | P67: qb-q | Q67: =(O41/(O41+O42))*((O50+(O49*O36))/O49) -> 16.00012157 | S67: qb-q | T67: =(P41/(P41+P42))*((P50+(P49*P36))/P49) -> 15.99996978 | AM67: qb-q | AN67: =(AN41/(AN41+AN42))*((AN52+(AN49*AN36))/AN49) ->  | AP67: qb-q | AQ67: =(AO41/(AO41+AO42))*((AO52+(AO49*AO36))/AO49) ->  | BC67: qb-q | BD67: =(BD41/(BD41+BD42))*((BD52+(BD49*BD36))/BD49) -> 12 | BF67: qb-q | BG67: =(BE41/(BE41+BE42))*((BE52+(BE49*BE36))/BE49) -> 12 | BS67: qb-q | BT67: =(BT41/(BT41+BT42))*((BT50+(BT49*BT36))/BT49) -> 16.00004541 | BV67: qb-q | BW67: =(BU41/(BU41+BU42))*((BU50+(BU49*BU36))/BU49) -> 16.000295 | BY67: qb-q | BZ67: =(BV41/(BV41+BV42))*((BV50+(BV49*BV36))/BV49) -> 
M68: U | N68: =N67^(N41)*N65^(N42) -> 47.5682846 | P68: U | Q68: =Q67^(O41)*Q65^(O42) -> 47.5682846 | S68: U | T68: =T67^(P41)*T65^(P42) -> 47.56814304 | AM68: U | AN68: =AN67^(AN41)*AN65^(AN42) ->  | AP68: U | AQ68: =AQ67^(AO41)*AQ65^(AO42) ->  | BC68: U | BD68: =BD67^(BD41)*BD65^(BD42) -> 53.66563146 | BF68: U | BG68: =BG67^(BE41)*BG65^(BE42) -> 53.66563146 | BS68: U | BT68: =BT67^(BT41)*BT65^(BT42) -> 49.43441145 | BV68: U | BW68: =BW67^(BU41)*BW65^(BU42) -> 49.43441148 | BY68: U | BZ68: =BZ67^(BV41)*BZ65^(BV42) -> 

Sheet Hoja1 (hidden)
A1: c | B1: O | C1: q | D1: u | E1: c | F1: O | G1: q | H1: beneficio | I1: benef calculado
A2: =($D$2/((B2)^($D$6)))^(1/$D$4) ->  | B2: =$D$8-C2 -> 0 | C2: 24 | D2: =(E30^(D4))*(F30^(D6)) -> 57.49753668 | E2: =($H$2/$H$6)+(($H$4/$H$6)*G2) -> 147 | F2: =$D$8-G2 -> 0 | G2: 24 | H2: 15 | I2: =(H6*E30)-(H4*G30) -> 15
A3: 326.4259127 | B3: 1 | C3: 23 | D3: gama | E3: =($H$2/$H$6)+(($H$4/$H$6)*G3) -> 141 | F3: 1 | G3: 23 | H3: w
A4: 219.6683494 | B4: 2 | C4: 22 | D4: 0.7 | E4: 135 | F4: 2 | G4: 22 | H4: 30
A5: 174.2384143 | B5: 3 | C5: 21 | D5: beta | E5: 129 | F5: 3 | G5: 21 | H5: p
A6: 147.8258369 | B6: 4 | C6: 20 | D6: 0.4 | E6: 123 | F6: 4 | G6: 20 | H6: 5
A7: 130.1287314 | B7: 5 | C7: 19 | D7: qbarra | E7: 117 | F7: 5 | G7: 19
A8: 117.2537577 | B8: 6 | C8: 18 | D8: 24 | E8: 111 | F8: 6 | G8: 18
A9: 107.3671589 | B9: 7 | C9: 17 | E9: 105 | F9: 7 | G9: 17
A10: 99.47941116 | B10: 8 | C10: 16 | E10: 99 | F10: 8 | G10: 16
A11: 93.00433527 | B11: 9 | C11: 15 | E11: 93 | F11: 9 | G11: 15
A12: 87.57014234 | B12: 10 | C12: 14 | E12: 87 | F12: 10 | G12: 14
A13: 82.92836303 | B13: 11 | C13: 13 | E13: 81 | F13: 11 | G13: 13
A14: 78.90592754 | B14: 12 | C14: 12 | E14: 75 | F14: 12 | G14: 12
A15: 75.37816635 | B15: 13 | C15: 11 | E15: 69 | F15: 13 | G15: 11
A16: 72.25273995 | B16: 14 | C16: 10 | E16: 63 | F16: 14 | G16: 10
A17: 69.45963215 | B17: 15 | C17: 9 | E17: 57 | F17: 15 | G17: 9
A18: 66.94467932 | B18: 16 | C18: 8 | E18: 51 | F18: 16 | G18: 8
A19: 64.66524952 | B19: 17 | C19: 7 | E19: 45 | F19: 17 | G19: 7
A20: 62.58727638 | B20: 18 | C20: 6 | E20: 39 | F20: 18 | G20: 6
A21: 60.68317336 | B21: 19 | C21: 5 | E21: 33 | F21: 19 | G21: 5
A22: 58.93033572 | B22: 20 | C22: 4 | E22: 27 | F22: 20 | G22: 4
A23: 57.31004432 | B23: 21 | C23: 3 | E23: 21 | F23: 21 | G23: 3
A24: 55.80664989 | B24: 22 | C24: 2 | E24: 15 | F24: 22 | G24: 2
A25: 54.40695684 | B25: 23 | C25: 1 | E25: 9 | F25: 23 | G25: 1
A26: 53.09975154 | B26: 24 | C26: 0 | E26: 3 | F26: 24 | G26: 0
E29: c | F29: O | G29: q
E30: =($D$4/($D$4+$D$6))*(($H$2+($H$4*$D$8))/$H$6) -> 93.54545455 | F30: =($D$6/($D$4+$D$6))*(($H$2+($H$4*$D$8))/$H$4) -> 8.909090909 | G30: =$D$8-F30 -> 15.09090909
A33: c | B33: O | C33: q | D33: u | E33: c | F33: O | G33: q | H33: beneficio | I33: benef calculado
A34: =($D$34/((B34)^($D$38)))^(1/$D$36) ->  | B34: =$D$40-C34 -> 0 | C34: 24 | D34: =(E62^(D36))*(F62^(D38)) -> 36.189248 | E34: =($H$34/$H$38)+(($H$36/$H$38)*G34) -> 75 | F34: =$D$40-G34 -> 0 | G34: 24 | H34: 15 | I34: =(H38*E62)-(H36*G62) -> 15
A35: =($D$34/((B35)^($D$38)))^(1/$D$36) -> 168.4776231 | B35: =$D$40-C35 -> 1 | C35: 23 | D35: gama | E35: =($H$34/$H$38)+(($H$36/$H$38)*G35) -> 72 | F35: =$D$40-G35 -> 1 | G35: 23 | H35: w
A36: 113.3770327 | B36: 2 | C36: 22 | D36: =D4 -> 0.7 | E36: 69 | F36: 2 | G36: 22 | H36: 15
A37: 89.92936146 | B37: 3 | C37: 21 | D37: beta | E37: 66 | F37: 3 | G37: 21 | H37: p
A38: 76.29708506 | B38: 4 | C38: 20 | D38: =D6 -> 0.4 | E38: 63 | F38: 4 | G38: 20 | H38: 5
A39: 67.16310964 | B39: 5 | C39: 19 | D39: qbarra | E39: 60 | F39: 5 | G39: 19
A40: 60.51797246 | B40: 6 | C40: 18 | D40: =D8 -> 24 | E40: 57 | F40: 6 | G40: 18
A41: 55.41521991 | B41: 7 | C41: 17 | E41: 54 | F41: 7 | G41: 17
A42: 51.34413074 | B42: 8 | C42: 16 | E42: 51 | F42: 8 | G42: 16
A43: 48.00216139 | B43: 9 | C43: 15 | E43: 48 | F43: 9 | G43: 15
A44: 45.1974211 | B44: 10 | C44: 14 | E44: 45 | F44: 10 | G44: 14
A45: 42.80166784 | B45: 11 | C45: 13 | E45: 42 | F45: 11 | G45: 13
A46: 40.72557539 | B46: 12 | C46: 12 | E46: 39 | F46: 12 | G46: 12
A47: 38.90479832 | B47: 13 | C47: 11 | E47: 36 | F47: 13 | G47: 11
A48: 37.29167757 | B48: 14 | C48: 10 | E48: 33 | F48: 14 | G48: 10
A49: 35.85007584 | B49: 15 | C49: 9 | E49: 30 | F49: 15 | G49: 9
A50: 34.55203772 | B50: 16 | C50: 8 | E50: 27 | F50: 16 | G50: 8
A51: 33.37555969 | B51: 17 | C51: 7 | E51: 24 | F51: 17 | G51: 7
A52: 32.30305913 | B52: 18 | C52: 6 | E52: 21 | F52: 18 | G52: 6
A53: 31.32029784 | B53: 19 | C53: 5 | E53: 18 | F53: 19 | G53: 5
A54: 30.41560888 | B54: 20 | C54: 4 | E54: 15 | F54: 20 | G54: 4
A55: 29.57933078 | B55: 21 | C55: 3 | E55: 12 | F55: 21 | G55: 3
A56: 28.80338649 | B56: 22 | C56: 2 | E56: 9 | F56: 22 | G56: 2
A57: 28.08096542 | B57: 23 | C57: 1 | E57: 6 | F57: 23 | G57: 1
A58: 27.40627988 | B58: 24 | C58: 0 | E58: 3 | F58: 24 | G58: 0
E61: c | F61: O | G61: q
E62: =($D$36/($D$36+$D$38))*(($H$34+($H$36*$D$40))/$H$38) -> 47.72727273 | F62: =($D$38/($D$36+$D$38))*(($H$34+($H$36*$D$40))/$H$36) -> 9.090909091 | G62: =$D$8-F62 -> 14.90909091
